[Event "Titled Tuesday Blitz June 8 2021"]
[White "Maly, Alexey"]
[Black "Andreikin, Dmitry"]
[WhiteFideId "14103184"]
[BlackFideId "4158814"]
[WhiteElo "2285"]
[BlackElo "2782"]
[Result "0-1"]
[Round "06"]
[TimeControl "180+1"]
[Date "2021.06.08"]
[WhiteClock "0:00:12"]
[BlackClock "0:00:16"]

1. d4 {[%clk 0:03:00]}  Nf6 {[%clk 0:02:58]} 2. c4 {[%clk 0:03:01]}  e6 {[%clk 0:02:58]} 3. Nf3 {[%clk 0:03:01]}  b6 {[%clk 0:02:58]} 4. g3 {[%clk 0:03:01]}  Bb7 {[%clk 0:02:58]} 5. Bg2 {[%clk 0:03:01]}  Bb4+ {[%clk 0:02:58]} 6. Nbd2 {[%clk 0:03:01]}  O-O {[%clk 0:02:57]} 7. O-O {[%clk 0:03:01]}  a5 {[%clk 0:02:51]} 8. b3 {[%clk 0:02:52]}  a4 {[%clk 0:02:48]} 9. Rb1 {[%clk 0:02:50]}  axb3 {[%clk 0:02:45]} 10. axb3 {[%clk 0:02:51]}  Ra2 {[%clk 0:02:21]} 11. Bb2 {[%clk 0:02:44]}  Na6 {[%clk 0:02:09]} 12. Qc1 {[%clk 0:02:39]}  Ne4 {[%clk 0:01:55]} 13. Ra1 {[%clk 0:02:20]}  Rxa1 {[%clk 0:01:52]} 14. Bxa1 {[%clk 0:02:21]}  Qa8 {[%clk 0:01:49]} 15. Nxe4 {[%clk 0:02:17]}  Bxe4 {[%clk 0:01:50]} 16. Bb2 {[%clk 0:02:00]}  h6 {[%clk 0:01:46]} 17. Qf4 {[%clk 0:01:56]}  Bd6 {[%clk 0:01:27]} 18. Qe3 {[%clk 0:01:53]}  Nb4 {[%clk 0:01:22]} 19. Ra1 {[%clk 0:01:51]}  Qb7 {[%clk 0:01:22]} 20. Qc3 {[%clk 0:01:41]}  Be7 {[%clk 0:01:10]} 21. Ne1 {[%clk 0:01:35]}  Bxg2 {[%clk 0:00:56]} 22. Nxg2 {[%clk 0:01:35]}  Ra8 {[%clk 0:00:52]} 23. f3 {[%clk 0:01:23]}  c5 {[%clk 0:00:47]} 24. Rxa8+ {[%clk 0:01:06]}  Qxa8 {[%clk 0:00:48]} 25. dxc5 {[%clk 0:01:04]}  Bxc5+ {[%clk 0:00:46]} 26. Kf1 {[%clk 0:00:54]}  Bf8 {[%clk 0:00:39]} 27. Nf4 {[%clk 0:00:53]}  Qa2 {[%clk 0:00:37]} 28. Nh5 {[%clk 0:00:45]}  Qb1+ {[%clk 0:00:35]} 29. Kg2 {[%clk 0:00:46]}  Qg6 {[%clk 0:00:17]} 30. Nf4 {[%clk 0:00:40]}  Qb1 {[%clk 0:00:16]} 31. Nh5 {[%clk 0:00:40]}  Na2 {[%clk 0:00:12]} 32. Qd4 {[%clk 0:00:34]}  Qc2 {[%clk 0:00:12]} 33. Nxg7 {[%clk 0:00:26]}  Qxe2+ {[%clk 0:00:11]} 34. Kh3 {[%clk 0:00:25]}  e5 {[%clk 0:00:12]} 35. Qxd7 {[%clk 0:00:11]}  Bxg7 {[%clk 0:00:12]} 36. Qe8+ {[%clk 0:00:08]}  Kh7 {[%clk 0:00:11]} 37. Qxf7 {[%clk 0:00:05]}  Qxb2 {[%clk 0:00:09]} 38. Qf5+ {[%clk 0:00:05]}  Kg8 {[%clk 0:00:09]} 39. Qe6+ {[%clk 0:00:04]}  Kh8 {[%clk 0:00:09]} 40. Qc8+ {[%clk 0:00:04]}  Kh7 {[%clk 0:00:10]} 41. Qf5+ {[%clk 0:00:04]}  Kg8 {[%clk 0:00:10]} 42. Qe6+ {[%clk 0:00:03]}  Kf8 {[%clk 0:00:11]} 43. Qd6+ {[%clk 0:00:02]}  Kf7 {[%clk 0:00:10]} 44. Qd7+ {[%clk 0:00:03]}  Kf6 {[%clk 0:00:10]} 45. Qd6+ {[%clk 0:00:03]}  Kf7 {[%clk 0:00:06]} 46. Qd7+ {[%clk 0:00:03]}  Kf6 {[%clk 0:00:05]} 47. Qd6+ {[%clk 0:00:04]}  Kg5 {[%clk 0:00:04]} 48. Qd8+ {[%clk 0:00:03]}  Kg6 {[%clk 0:00:02]} 49. Qd6+ {[%clk 0:00:03]}  Bf6 {[%clk 0:00:02]} 50. Qd3+ {[%clk 0:00:03]}  Kg7 {[%clk 0:00:02]} 51. Qd7+ {[%clk 0:00:03]}  Kg6 {[%clk 0:00:02]} 52. Qd3+ {[%clk 0:00:03]}  e4 {[%clk 0:00:03]} 53. Qxe4+ {[%clk 0:00:03]}  Kf7 {[%clk 0:00:03]} 54. Qd5+ {[%clk 0:00:03]}  Kg7 {[%clk 0:00:03]} 55. Qd7+ {[%clk 0:00:03]}  Kf8 {[%clk 0:00:03]} 56. Qc8+ {[%clk 0:00:04]}  Kf7 {[%clk 0:00:04]} 57. Qd7+ {[%clk 0:00:04]}  Be7 {[%clk 0:00:04]} 58. Qd5+ {[%clk 0:00:04]}  Kg7 {[%clk 0:00:05]} 59. Qe6 {[%clk 0:00:02]}  Qf6 {[%clk 0:00:05]} 60. Qd5 {[%clk 0:00:01]}  Nb4 {[%clk 0:00:04]} 61. Qe4 {[%clk 0:00:01]}  Kf7 {[%clk 0:00:04]} 62. f4 {[%clk 0:00:01]}  Qe6+ {[%clk 0:00:04]} 63. Qxe6+ {[%clk 0:00:02]}  Kxe6 {[%clk 0:00:05]} 64. Kg4 {[%clk 0:00:02]}  Nd3 {[%clk 0:00:05]} 65. Kh5 {[%clk 0:00:02]}  Nc1 {[%clk 0:00:05]} 66. b4 {[%clk 0:00:02]}  Bxb4 {[%clk 0:00:05]} 67. Kxh6 {[%clk 0:00:02]}  Nb3 {[%clk 0:00:05]} 68. g4 {[%clk 0:00:02]}  Nd2 {[%clk 0:00:05]} 69. g5 {[%clk 0:00:03]}  Nxc4 {[%clk 0:00:05]} 70. g6 {[%clk 0:00:03]}  Bf8+ {[%clk 0:00:05]} 71. g7 {[%clk 0:00:02]}  Bxg7+ {[%clk 0:00:05]} 72. Kxg7 {[%clk 0:00:03]}  Nd6 {[%clk 0:00:05]} 73. h4 {[%clk 0:00:04]}  Nf5+ {[%clk 0:00:06]} 74. Kg6 {[%clk 0:00:04]}  Nxh4+ {[%clk 0:00:06]} 75. Kg5 {[%clk 0:00:04]}  Nf5 {[%clk 0:00:07]} 76. Kg4 {[%clk 0:00:04]}  b5 {[%clk 0:00:07]} 77. Kf3 {[%clk 0:00:05]}  Kd5 {[%clk 0:00:07]} 78. Ke2 {[%clk 0:00:05]}  Ke4 {[%clk 0:00:08]} 79. Kd2 {[%clk 0:00:06]}  Kxf4 {[%clk 0:00:08]} 80. Kc3 {[%clk 0:00:07]}  Ke5 {[%clk 0:00:09]} 81. Kb4 {[%clk 0:00:07]}  Nd6 {[%clk 0:00:09]} 82. Kc5 {[%clk 0:00:08]}  Ke4 {[%clk 0:00:09]} 83. Kb4 {[%clk 0:00:08]}  Kd4 {[%clk 0:00:10]} 84. Kb3 {[%clk 0:00:09]}  Kc5 {[%clk 0:00:10]} 85. Kc3 {[%clk 0:00:09]}  b4+ {[%clk 0:00:10]} 86. Kb3 {[%clk 0:00:09]}  Kb5 {[%clk 0:00:11]} 87. Kb2 {[%clk 0:00:09]}  Kc4 {[%clk 0:00:12]} 88. Kc2 {[%clk 0:00:10]}  b3+ {[%clk 0:00:13]} 89. Kb2 {[%clk 0:00:10]}  Kb4 {[%clk 0:00:13]} 90. Kb1 {[%clk 0:00:10]}  Kc3 {[%clk 0:00:14]} 91. Kc1 {[%clk 0:00:11]}  Nc4 {[%clk 0:00:14]} 92. Kb1 {[%clk 0:00:11]}  Nd2+ {[%clk 0:00:14]} 93. Ka1 {[%clk 0:00:11]}  b2+ {[%clk 0:00:15]} 94. Ka2 {[%clk 0:00:12]}  b1=Q+ {[%clk 0:00:15]} 95. Ka3 {[%clk 0:00:12]}  Qa1# {[%clk 0:00:16]} 0-1


[Site "https://www.chess.com"]

[Event "Titled Tuesday Blitz June 8 2021"]
[White "Nakamura, Hikaru"]
[Black "Gavrilescu, David"]
[WhiteFideId "2016192"]
[BlackFideId "1227190"]
[WhiteElo "2900"]
[BlackElo "2370"]
[Result "1-0"]
[Round "06"]
[TimeControl "180+1"]
[Date "2021.06.08"]
[WhiteClock "0:00:45"]
[BlackClock "0:00:08"]

1. Nf3 {[%clk 0:03:00]}  d5 {[%clk 0:02:59]} 2. e3 {[%clk 0:02:57]}  Nf6 {[%clk 0:02:58]} 3. c4 {[%clk 0:02:56]}  e6 {[%clk 0:02:59]} 4. b3 {[%clk 0:02:56]}  c5 {[%clk 0:02:59]} 5. Bb2 {[%clk 0:02:55]}  Nc6 {[%clk 0:02:59]} 6. cxd5 {[%clk 0:02:56]}  exd5 {[%clk 0:02:59]} 7. d4 {[%clk 0:02:53]}  cxd4 {[%clk 0:02:59]} 8. Nxd4 {[%clk 0:02:53]}  Bb4+ {[%clk 0:02:59]} 9. Bc3 {[%clk 0:02:49]}  Bd6 {[%clk 0:02:59]} 10. Nd2 {[%clk 0:02:47]}  O-O {[%clk 0:02:54]} 11. Be2 {[%clk 0:02:44]}  Re8 {[%clk 0:02:51]} 12. O-O {[%clk 0:02:42]}  Nxd4 {[%clk 0:02:44]} 13. Bxd4 {[%clk 0:02:43]}  Bf5 {[%clk 0:02:45]} 14. a3 {[%clk 0:02:31]}  a6 {[%clk 0:02:30]} 15. b4 {[%clk 0:02:29]}  Rc8 {[%clk 0:02:30]} 16. Qb3 {[%clk 0:02:27]}  h6 {[%clk 0:02:04]} 17. Rfc1 {[%clk 0:02:21]}  Ne4 {[%clk 0:01:56]} 18. Nxe4 {[%clk 0:01:54]}  dxe4 {[%clk 0:01:51]} 19. Bc4 {[%clk 0:01:48]}  Qe7 {[%clk 0:01:44]} 20. Bd5 {[%clk 0:01:45]}  Rxc1+ {[%clk 0:01:25]} 21. Rxc1 {[%clk 0:01:46]}  Be6 {[%clk 0:01:25]} 22. Bxe6 {[%clk 0:01:41]}  Qxe6 {[%clk 0:01:26]} 23. Qxe6 {[%clk 0:01:40]}  Rxe6 {[%clk 0:01:27]} 24. Rc8+ {[%clk 0:01:40]}  Kh7 {[%clk 0:01:26]} 25. Kf1 {[%clk 0:01:34]}  Kg6 {[%clk 0:01:13]} 26. Rd8 {[%clk 0:01:25]}  Be5 {[%clk 0:01:10]} 27. Rd7 {[%clk 0:01:19]}  Bxd4 {[%clk 0:01:08]} 28. exd4 {[%clk 0:01:20]}  Rb6 {[%clk 0:01:05]} 29. g4 {[%clk 0:01:12]}  Rb5 {[%clk 0:00:56]} 30. Rc7 {[%clk 0:01:00]}  Rd5 {[%clk 0:00:25]} 31. Rxb7 {[%clk 0:00:59]}  Rxd4 {[%clk 0:00:25]} 32. Rb6+ {[%clk 0:00:59]}  Kg5 {[%clk 0:00:26]} 33. Rxa6 {[%clk 0:00:59]}  Kxg4 {[%clk 0:00:26]} 34. Ra7 {[%clk 0:00:54]}  f5 {[%clk 0:00:14]} 35. Rxg7+ {[%clk 0:00:52]}  Kf3 {[%clk 0:00:14]} 36. Rg3+ {[%clk 0:00:52]}  Kf4 {[%clk 0:00:15]} 37. Rb3 {[%clk 0:00:51]}  Rd2 {[%clk 0:00:14]} 38. b5 {[%clk 0:00:47]}  e3 {[%clk 0:00:08]} 39. fxe3+ {[%clk 0:00:45]}  Kf3 {[%clk 0:00:08]} 40. Ke1 {[%clk 0:00:45]} 1-0


[Site "https://www.chess.com"]

[Event "Titled Tuesday Blitz June 8 2021"]
[White "Nenezic, Marko"]
[Black "Svane, Rasmus"]
[WhiteFideId "912123"]
[BlackFideId "4657101"]
[WhiteElo "2438"]
[BlackElo "2669"]
[Result "0-1"]
[Round "06"]
[TimeControl "180+1"]
[Date "2021.06.08"]
[WhiteClock "0:00:38"]
[BlackClock "0:00:55"]

1. Nf3 {[%clk 0:03:00]}  d5 {[%clk 0:02:59]} 2. g3 {[%clk 0:03:01]}  e6 {[%clk 0:02:59]} 3. Bg2 {[%clk 0:03:01]}  Nf6 {[%clk 0:03:00]} 4. O-O {[%clk 0:03:02]}  Be7 {[%clk 0:02:58]} 5. b3 {[%clk 0:03:02]}  O-O {[%clk 0:02:58]} 6. Bb2 {[%clk 0:03:03]}  c5 {[%clk 0:02:58]} 7. d3 {[%clk 0:03:01]}  Nc6 {[%clk 0:02:57]} 8. Nbd2 {[%clk 0:03:01]}  Qc7 {[%clk 0:02:51]} 9. e4 {[%clk 0:02:55]}  Rd8 {[%clk 0:02:51]} 10. Re1 {[%clk 0:02:41]}  dxe4 {[%clk 0:02:45]} 11. dxe4 {[%clk 0:02:30]}  b6 {[%clk 0:02:45]} 12. e5 {[%clk 0:02:25]}  Nd5 {[%clk 0:02:44]} 13. Qe2 {[%clk 0:02:25]}  Ndb4 {[%clk 0:02:38]} 14. Ne4 {[%clk 0:02:22]}  Ba6 {[%clk 0:02:34]} 15. c4 {[%clk 0:02:19]}  Nd4 {[%clk 0:02:13]} 16. Nxd4 {[%clk 0:02:10]}  cxd4 {[%clk 0:02:14]} 17. a3 {[%clk 0:01:26]}  Nc6 {[%clk 0:02:00]} 18. f4 {[%clk 0:01:24]}  d3 {[%clk 0:01:43]} 19. Qg4 {[%clk 0:00:55]}  Na5 {[%clk 0:01:27]} 20. Nf6+ {[%clk 0:00:52]}  Kh8 {[%clk 0:01:28]} 21. Be4 {[%clk 0:00:50]}  h6 {[%clk 0:01:20]} 22. Qh5 {[%clk 0:00:42]}  Nxb3 {[%clk 0:01:11]} 23. Rad1 {[%clk 0:00:42]}  d2 {[%clk 0:01:07]} 24. Re2 {[%clk 0:00:39]}  Bxc4 {[%clk 0:01:00]} 25. Rf2 {[%clk 0:00:39]}  Bc5 {[%clk 0:00:55]} 26. Ng4 {[%clk 0:00:38]}  Be2 {[%clk 0:00:55]} 0-1


[Site "https://www.chess.com"]

[Event "Titled Tuesday Blitz June 8 2021"]
[White "Papasimakopoulos, Alexandros"]
[Black "Pichot, Alan"]
[WhiteFideId "4244125"]
[BlackFideId "110973"]
[WhiteElo "2352"]
[BlackElo "2622"]
[Result "0-1"]
[Round "06"]
[TimeControl "180+1"]
[Date "2021.06.08"]
[WhiteClock "0:01:04"]
[BlackClock "0:00:58"]

1. d4 {[%clk 0:03:00]}  Nf6 {[%clk 0:02:54]} 2. c4 {[%clk 0:03:01]}  e6 {[%clk 0:02:54]} 3. Nc3 {[%clk 0:03:01]}  Bb4 {[%clk 0:02:52]} 4. Qc2 {[%clk 0:03:01]}  d6 {[%clk 0:02:48]} 5. a3 {[%clk 0:03:01]}  Bxc3+ {[%clk 0:02:46]} 6. Qxc3 {[%clk 0:03:02]}  O-O {[%clk 0:02:46]} 7. f3 {[%clk 0:03:03]}  c5 {[%clk 0:02:44]} 8. dxc5 {[%clk 0:03:02]}  dxc5 {[%clk 0:02:45]} 9. Bf4 {[%clk 0:03:02]}  Nc6 {[%clk 0:02:19]} 10. Rd1 {[%clk 0:03:03]}  Qb6 {[%clk 0:02:19]} 11. e3 {[%clk 0:03:01]}  Re8 {[%clk 0:02:11]} 12. Bg5 {[%clk 0:02:56]}  Nd7 {[%clk 0:02:11]} 13. Nh3 {[%clk 0:02:49]}  h6 {[%clk 0:02:10]} 14. Bh4 {[%clk 0:02:49]}  e5 {[%clk 0:02:08]} 15. Be2 {[%clk 0:02:48]}  Nf8 {[%clk 0:02:08]} 16. Nf2 {[%clk 0:02:47]}  Ng6 {[%clk 0:02:08]} 17. Bg3 {[%clk 0:02:47]}  Bf5 {[%clk 0:02:08]} 18. O-O {[%clk 0:02:44]}  Rad8 {[%clk 0:02:08]} 19. Rd5 {[%clk 0:02:30]}  Be6 {[%clk 0:02:01]} 20. Rdd1 {[%clk 0:02:26]}  f5 {[%clk 0:02:01]} 21. Nd3 {[%clk 0:02:10]}  Bf7 {[%clk 0:01:42]} 22. h4 {[%clk 0:01:57]}  f4 {[%clk 0:01:40]} 23. exf4 {[%clk 0:01:31]}  exf4 {[%clk 0:01:39]} 24. h5 {[%clk 0:01:31]}  Nd4 {[%clk 0:01:27]} 25. Nc1 {[%clk 0:01:30]}  fxg3 {[%clk 0:01:13]} 26. hxg6 {[%clk 0:01:29]}  Qxg6 {[%clk 0:01:14]} 27. Rxd4 {[%clk 0:01:18]}  cxd4 {[%clk 0:01:11]} 28. Qa5 {[%clk 0:01:13]}  d3 {[%clk 0:01:05]} 29. Bd1 {[%clk 0:01:13]}  b6 {[%clk 0:00:59]} 30. Qb5 {[%clk 0:01:08]}  a6 {[%clk 0:00:59]} 31. Qh5 {[%clk 0:01:05]}  Qxh5 {[%clk 0:00:59]} 32. b4 {[%clk 0:01:04]}  Qh2# {[%clk 0:00:58]} 0-1


[Site "https://www.chess.com"]

[Event "Titled Tuesday Blitz June 8 2021"]
[White "Perez Ponsa, Federico"]
[Black "Wagner, Dennis"]
[WhiteFideId "117927"]
[BlackFideId "24650684"]
[WhiteElo "2672"]
[BlackElo "2355"]
[Result "1-0"]
[Round "06"]
[TimeControl "180+1"]
[Date "2021.06.08"]
[WhiteClock "0:00:05"]
[BlackClock "0:00:02"]

1. e4 {[%clk 0:03:00]}  c5 {[%clk 0:02:54]} 2. Nf3 {[%clk 0:03:00]}  d6 {[%clk 0:02:55]} 3. d4 {[%clk 0:02:58]}  cxd4 {[%clk 0:02:56]} 4. Nxd4 {[%clk 0:02:58]}  Nf6 {[%clk 0:02:56]} 5. Nc3 {[%clk 0:02:59]}  a6 {[%clk 0:02:57]} 6. Be2 {[%clk 0:03:00]}  e5 {[%clk 0:02:57]} 7. Nb3 {[%clk 0:03:00]}  Be7 {[%clk 0:02:57]} 8. Bg5 {[%clk 0:03:00]}  Be6 {[%clk 0:02:55]} 9. Bxf6 {[%clk 0:02:53]}  Bxf6 {[%clk 0:02:56]} 10. Qd3 {[%clk 0:02:50]}  Be7 {[%clk 0:02:47]} 11. O-O-O {[%clk 0:02:47]}  Nd7 {[%clk 0:02:47]} 12. g3 {[%clk 0:02:46]}  Rc8 {[%clk 0:02:44]} 13. f4 {[%clk 0:02:42]}  b5 {[%clk 0:02:43]} 14. Rhe1 {[%clk 0:02:33]}  O-O {[%clk 0:02:29]} 15. f5 {[%clk 0:02:32]}  Bxb3 {[%clk 0:02:06]} 16. axb3 {[%clk 0:02:30]}  Nc5 {[%clk 0:02:05]} 17. Qf3 {[%clk 0:02:27]}  Nxb3+ {[%clk 0:01:52]} 18. cxb3 {[%clk 0:02:17]}  b4 {[%clk 0:01:52]} 19. Bxa6 {[%clk 0:02:17]}  Rc7 {[%clk 0:01:34]} 20. Bc4 {[%clk 0:02:12]}  bxc3 {[%clk 0:01:33]} 21. bxc3 {[%clk 0:01:57]}  Qa8 {[%clk 0:01:32]} 22. Kd2 {[%clk 0:01:42]}  Rxc4 {[%clk 0:01:01]} 23. bxc4 {[%clk 0:01:42]}  Qa2+ {[%clk 0:01:02]} 24. Kd3 {[%clk 0:01:38]}  Rc8 {[%clk 0:01:02]} 25. h4 {[%clk 0:01:32]}  Bd8 {[%clk 0:00:56]} 26. Ra1 {[%clk 0:01:24]}  Qxc4+ {[%clk 0:00:54]} 27. Kd2 {[%clk 0:01:25]}  Bb6 {[%clk 0:00:37]} 28. Qd3 {[%clk 0:01:23]}  Qc5 {[%clk 0:00:35]} 29. Rab1 {[%clk 0:01:16]}  Ba5 {[%clk 0:00:33]} 30. Rb3 {[%clk 0:01:12]}  h5 {[%clk 0:00:33]} 31. Kc2 {[%clk 0:01:06]}  Qf2+ {[%clk 0:00:12]} 32. Re2 {[%clk 0:01:05]}  Qf1 {[%clk 0:00:12]} 33. Rd2 {[%clk 0:00:45]}  Qa1 {[%clk 0:00:12]} 34. f6 {[%clk 0:00:17]}  Qa2+ {[%clk 0:00:11]} 35. Rb2 {[%clk 0:00:17]}  Qa4+ {[%clk 0:00:10]} 36. Kb1 {[%clk 0:00:18]}  Bxc3 {[%clk 0:00:09]} 37. Rdc2 {[%clk 0:00:18]}  Qa3 {[%clk 0:00:06]} 38. fxg7 {[%clk 0:00:10]}  Kxg7 {[%clk 0:00:07]} 39. g4 {[%clk 0:00:07]}  hxg4 {[%clk 0:00:06]} 40. Qg3 {[%clk 0:00:07]}  f5 {[%clk 0:00:05]} 41. exf5 {[%clk 0:00:07]}  Rc4 {[%clk 0:00:05]} 42. Qd3 {[%clk 0:00:05]}  Rc5 {[%clk 0:00:02]} 43. f6+ {[%clk 0:00:04]}  Kf7 {[%clk 0:00:01]} 44. Qh7+ {[%clk 0:00:04]}  Kxf6 {[%clk 0:00:02]} 45. Rf2+ {[%clk 0:00:05]}  Ke6 {[%clk 0:00:02]} 46. Qf7# {[%clk 0:00:05]} 1-0


[Site "https://www.chess.com"]

[Event "Titled Tuesday Blitz June 8 2021"]
[White "Sanal, Vahap"]
[Black "Guo, Arthur"]
[WhiteFideId "6300545"]
[BlackFideId "30903114"]
[WhiteElo "2507"]
[BlackElo "2823"]
[Result "1-0"]
[Round "06"]
[TimeControl "180+1"]
[Date "2021.06.08"]
[WhiteClock "0:00:14"]
[BlackClock "0:00:02"]

1. e4 {[%clk 0:03:00]}  c5 {[%clk 0:02:59]} 2. Nf3 {[%clk 0:03:00]}  d6 {[%clk 0:02:59]} 3. d4 {[%clk 0:03:01]}  cxd4 {[%clk 0:03:00]} 4. Nxd4 {[%clk 0:03:01]}  Nf6 {[%clk 0:03:01]} 5. Nc3 {[%clk 0:03:01]}  a6 {[%clk 0:03:01]} 6. a3 {[%clk 0:03:02]}  e5 {[%clk 0:03:00]} 7. Nf5 {[%clk 0:03:02]}  d5 {[%clk 0:03:00]} 8. Bg5 {[%clk 0:03:01]}  d4 {[%clk 0:03:01]} 9. Bxf6 {[%clk 0:02:59]}  gxf6 {[%clk 0:03:02]} 10. Nb1 {[%clk 0:02:59]}  Be6 {[%clk 0:02:44]} 11. Nd2 {[%clk 0:02:56]}  Qb6 {[%clk 0:02:41]} 12. Bc4 {[%clk 0:02:54]}  Nd7 {[%clk 0:02:20]} 13. Qh5 {[%clk 0:02:46]}  Bxc4 {[%clk 0:02:13]} 14. Nxc4 {[%clk 0:02:45]}  Qc6 {[%clk 0:02:14]} 15. Qe2 {[%clk 0:02:37]}  Rc8 {[%clk 0:02:11]} 16. Nd2 {[%clk 0:02:35]}  Qxc2 {[%clk 0:02:06]} 17. O-O {[%clk 0:02:35]}  Qc7 {[%clk 0:01:58]} 18. Qh5 {[%clk 0:02:27]}  Qb6 {[%clk 0:01:43]} 19. Rac1 {[%clk 0:02:25]}  Rc6 {[%clk 0:01:43]} 20. Nc4 {[%clk 0:02:24]}  Qb3 {[%clk 0:01:39]} 21. Ncd6+ {[%clk 0:02:16]}  Bxd6 {[%clk 0:01:34]} 22. Nxd6+ {[%clk 0:02:14]}  Ke7 {[%clk 0:01:30]} 23. Nf5+ {[%clk 0:02:12]}  Kd8 {[%clk 0:01:26]} 24. Rcd1 {[%clk 0:02:07]}  Qe6 {[%clk 0:01:21]} 25. h3 {[%clk 0:01:58]}  Kc8 {[%clk 0:01:21]} 26. b4 {[%clk 0:01:51]}  Kb8 {[%clk 0:01:21]} 27. Rb1 {[%clk 0:01:46]}  Rc3 {[%clk 0:01:18]} 28. a4 {[%clk 0:01:40]}  d3 {[%clk 0:01:12]} 29. Rfd1 {[%clk 0:01:37]}  Nb6 {[%clk 0:01:08]} 30. Ne3 {[%clk 0:01:27]}  Nxa4 {[%clk 0:01:00]} 31. b5 {[%clk 0:01:27]}  Rb3 {[%clk 0:00:55]} 32. bxa6 {[%clk 0:01:23]}  Nc3 {[%clk 0:00:44]} 33. Rxb3 {[%clk 0:01:10]}  Qxb3 {[%clk 0:00:45]} 34. Rd2 {[%clk 0:01:09]}  Nxe4 {[%clk 0:00:45]} 35. Rd1 {[%clk 0:01:06]}  Nc3 {[%clk 0:00:42]} 36. Rd2 {[%clk 0:01:07]}  Ne2+ {[%clk 0:00:42]} 37. Kh2 {[%clk 0:01:07]}  Nf4 {[%clk 0:00:37]} 38. Qf5 {[%clk 0:01:04]}  Qe6 {[%clk 0:00:33]} 39. Qe4 {[%clk 0:01:04]}  Qxa6 {[%clk 0:00:34]} 40. g3 {[%clk 0:01:01]}  Ne6 {[%clk 0:00:33]} 41. h4 {[%clk 0:00:41]}  Nd4 {[%clk 0:00:33]} 42. Rxd3 {[%clk 0:00:39]}  Qc6 {[%clk 0:00:34]} 43. Qg4 {[%clk 0:00:23]}  Nf3+ {[%clk 0:00:33]} 44. Kh1 {[%clk 0:00:24]}  Ne1+ {[%clk 0:00:28]} 45. Rd5 {[%clk 0:00:24]}  Nd3 {[%clk 0:00:19]} 46. Kg1 {[%clk 0:00:22]}  Nb4 {[%clk 0:00:16]} 47. Qxb4 {[%clk 0:00:20]}  Qc1+ {[%clk 0:00:17]} 48. Rd1 {[%clk 0:00:20]}  Qc6 {[%clk 0:00:18]} 49. Qb3 {[%clk 0:00:19]}  Qc7 {[%clk 0:00:17]} 50. Nd5 {[%clk 0:00:19]}  Qc6 {[%clk 0:00:14]} 51. Nb4 {[%clk 0:00:19]}  Qb6 {[%clk 0:00:14]} 52. Rb1 {[%clk 0:00:18]}  Qb5 {[%clk 0:00:11]} 53. Qxf7 {[%clk 0:00:17]}  Rc8 {[%clk 0:00:08]} 54. Qxf6 {[%clk 0:00:16]}  Rc4 {[%clk 0:00:08]} 55. Qd6+ {[%clk 0:00:16]}  Kc8 {[%clk 0:00:07]} 56. Ra1 {[%clk 0:00:15]}  b6 {[%clk 0:00:02]} 57. Ra8+ {[%clk 0:00:14]}  Kb7 {[%clk 0:00:02]} 58. Qb8# {[%clk 0:00:14]} 1-0


[Site "https://www.chess.com"]

[Event "Titled Tuesday Blitz June 8 2021"]
[White "Svidler, Peter"]
[Black "Jobava, Baadur"]
[WhiteFideId "4102142"]
[BlackFideId "13601520"]
[WhiteElo "2754"]
[BlackElo "2748"]
[Result "1/2-1/2"]
[Round "06"]
[TimeControl "180+1"]
[Date "2021.06.08"]
[WhiteClock "0:00:21"]
[BlackClock "0:00:17"]

1. c4 {[%clk 0:03:00]}  c6 {[%clk 0:02:59]} 2. d4 {[%clk 0:02:55]}  d5 {[%clk 0:02:59]} 3. cxd5 {[%clk 0:02:55]}  cxd5 {[%clk 0:02:59]} 4. Bf4 {[%clk 0:02:56]}  Nc6 {[%clk 0:02:58]} 5. e3 {[%clk 0:02:56]}  Nf6 {[%clk 0:02:58]} 6. Nc3 {[%clk 0:02:56]}  e6 {[%clk 0:02:58]} 7. Bd3 {[%clk 0:02:53]}  Bd7 {[%clk 0:02:58]} 8. Rc1 {[%clk 0:02:52]}  Be7 {[%clk 0:02:58]} 9. h3 {[%clk 0:02:47]}  Qa5 {[%clk 0:02:56]} 10. a3 {[%clk 0:02:37]}  O-O {[%clk 0:02:56]} 11. Nf3 {[%clk 0:02:23]}  Rfc8 {[%clk 0:02:56]} 12. O-O {[%clk 0:02:21]}  Qd8 {[%clk 0:02:56]} 13. Ne5 {[%clk 0:02:14]}  Be8 {[%clk 0:02:55]} 14. Qe2 {[%clk 0:02:10]}  h6 {[%clk 0:02:55]} 15. Bg3 {[%clk 0:01:57]}  Nxe5 {[%clk 0:02:53]} 16. dxe5 {[%clk 0:01:57]}  Nd7 {[%clk 0:02:53]} 17. Bb1 {[%clk 0:01:53]}  Nf8 {[%clk 0:02:51]} 18. Qd2 {[%clk 0:01:48]}  Rc6 {[%clk 0:02:28]} 19. Ne2 {[%clk 0:01:46]}  Rac8 {[%clk 0:02:28]} 20. Rxc6 {[%clk 0:01:46]}  bxc6 {[%clk 0:02:27]} 21. f4 {[%clk 0:01:40]}  c5 {[%clk 0:02:25]} 22. f5 {[%clk 0:01:38]}  exf5 {[%clk 0:02:25]} 23. Bxf5 {[%clk 0:01:38]}  Rb8 {[%clk 0:02:20]} 24. Nf4 {[%clk 0:01:38]}  d4 {[%clk 0:02:18]} 25. e6 {[%clk 0:01:34]}  dxe3 {[%clk 0:02:11]} 26. Qxe3 {[%clk 0:01:33]}  Rxb2 {[%clk 0:02:08]} 27. Qe5 {[%clk 0:00:36]}  Bf6 {[%clk 0:02:01]} 28. Qe4 {[%clk 0:00:32]}  Qd4+ {[%clk 0:01:59]} 29. Qxd4 {[%clk 0:00:32]}  Bxd4+ {[%clk 0:01:59]} 30. Kh1 {[%clk 0:00:32]}  Rb3 {[%clk 0:01:54]} 31. Bf2 {[%clk 0:00:23]}  fxe6 {[%clk 0:01:26]} 32. Nxe6 {[%clk 0:00:23]}  Bxf2 {[%clk 0:01:26]} 33. Rxf2 {[%clk 0:00:19]}  Bf7 {[%clk 0:00:56]} 34. Nxf8 {[%clk 0:00:19]}  Kxf8 {[%clk 0:00:57]} 35. Bg6 {[%clk 0:00:19]}  Rb7 {[%clk 0:00:57]} 36. Rf5 {[%clk 0:00:20]}  c4 {[%clk 0:00:57]} 37. Rf4 {[%clk 0:00:20]}  c3 {[%clk 0:00:56]} 38. Rf3 {[%clk 0:00:20]}  c2 {[%clk 0:00:31]} 39. Bxc2 {[%clk 0:00:20]}  Ke7 {[%clk 0:00:32]} 40. Re3+ {[%clk 0:00:20]}  Kd6 {[%clk 0:00:32]} 41. Kh2 {[%clk 0:00:21]}  Bd5 {[%clk 0:00:30]} 42. Bg6 {[%clk 0:00:20]}  Rb2 {[%clk 0:00:29]} 43. Be4 {[%clk 0:00:21]}  Rb3 {[%clk 0:00:24]} 44. Rxb3 {[%clk 0:00:20]}  Bxb3 {[%clk 0:00:25]} 45. Kg3 {[%clk 0:00:21]}  Kc5 {[%clk 0:00:24]} 46. Kf4 {[%clk 0:00:21]}  Kd4 {[%clk 0:00:24]} 47. Bc6 {[%clk 0:00:21]}  a5 {[%clk 0:00:24]} 48. Kf5 {[%clk 0:00:21]}  Bc2+ {[%clk 0:00:19]} 49. Ke6 {[%clk 0:00:21]}  Kc3 {[%clk 0:00:20]} 50. Kf7 {[%clk 0:00:21]}  g5 {[%clk 0:00:19]} 51. g4 {[%clk 0:00:22]}  Kb3 {[%clk 0:00:19]} 52. Kg7 {[%clk 0:00:22]}  Kxa3 {[%clk 0:00:20]} 53. Kxh6 {[%clk 0:00:23]}  Kb4 {[%clk 0:00:18]} 54. Kxg5 {[%clk 0:00:23]}  Kc5 {[%clk 0:00:19]} 55. Be8 {[%clk 0:00:23]}  Kd6 {[%clk 0:00:20]} 56. Kf6 {[%clk 0:00:23]}  a4 {[%clk 0:00:19]} 57. Bxa4 {[%clk 0:00:23]}  Bxa4 {[%clk 0:00:20]} 58. g5 {[%clk 0:00:23]}  Kd7 {[%clk 0:00:18]} 59. g6 {[%clk 0:00:22]}  Ke8 {[%clk 0:00:18]} 60. Kg7 {[%clk 0:00:21]}  Bd1 {[%clk 0:00:17]} 61. h4 {[%clk 0:00:20]}  Ke7 {[%clk 0:00:17]} 62. Kh8 {[%clk 0:00:20]}  Kf6 {[%clk 0:00:16]} 63. g7 {[%clk 0:00:20]}  Bb3 {[%clk 0:00:16]} 64. h5 {[%clk 0:00:20]}  Kg5 {[%clk 0:00:16]} 65. g8=Q+ {[%clk 0:00:20]}  Bxg8 {[%clk 0:00:16]} 66. Kxg8 {[%clk 0:00:21]}  Kxh5 {[%clk 0:00:17]} 1/2-1/2


[Site "https://www.chess.com"]